fUSD/lending_fUSD_20260420
["ID","MTS","AMOUNT","RATE_DAILY","PERIOD"]
[420843532,1776623336773,10000.01,9.913e-05,2]
[420843533,1776623336800,10000.01,9.913e-05,2]
[420843534,1776623336828,10000.01,9.913e-05,2]
[420843535,1776623336857,10000.01,9.913e-05,2]
[420843536,1776623336883,10000.01,9.913e-05,2]
[420843537,1776623336912,4337.47,9.913e-05,2]
[420843538,1776623336939,5000.01,9.913e-05,2]
[420843539,1776623336966,788.2732,9.913e-05,2]
[420843540,1776623364626,166.66,9.492e-05,2]
[420843541,1776623365356,587.3691,9.935e-05,2]
[420843542,1776623371174,4245.9809,9.935e-05,2]
[420843543,1776623371196,5000.01,9.935e-05,2]
[420843544,1776623371218,5000.01,9.935e-05,2]
[420843545,1776623371246,42702.1265,9.935e-05,2]
[420843546,1776623405399,288.69715067,0.00010003,2]
[420843547,1776623415615,4711.31284933,9.913e-05,2]
[420843548,1776623415641,823.80905067,9.913e-05,2]
[420843550,1776623432314,-279.0,0.00010012,2]
[420843551,1776623432324,-250.0,0.00010012,2]
[420843552,1776623432334,-500.0,0.00010013,2]
[420843553,1776623432344,-370.2411,0.00010013,2]
[420843554,1776623432353,-150.0,0.0001002,2]
[420843555,1776623432363,-150.0,0.00010022,2]
[420843556,1776623432373,-150.0,0.00010031,2]
[420843557,1776623432382,-300.0,0.00010034,2]
[420843558,1776623432392,-300.0,0.00010034,2]
[420843559,1776623432402,-1200.0,0.00010034,2]
[420843560,1776623432411,-150.0,0.00010034,2]
[420843561,1776623432422,-123158.72,0.00010035,2]
[420843562,1776623432431,-150.0,0.00010046,2]
[420843563,1776623432440,-260.592825,0.00010051,2]
[420843564,1776623432450,-150.0,0.00010064,2]
[420843565,1776623432460,-150.0,0.00010079,2]
[420843566,1776623432471,-150.0,0.00010084,2]
[420843568,1776623432481,-150.0,0.00010107,2]
[420843569,1776623432491,-420.28,0.00010111,2]
[420843571,1776623432501,-508.95216885,0.00010112,2]
[420843572,1776623432511,-500.0,0.00010112,2]
[420843573,1776623432520,-500.0,0.00010112,2]
[420843574,1776623432530,-500.0,0.00010112,2]
[420843575,1776623432540,-170.77325197,0.00010112,2]
[420843576,1776623432549,-500.0,0.00010112,2]
[420843577,1776623432559,-500.0,0.00010112,2]
[420843578,1776623432569,-500.0,0.00010112,2]
[420843579,1776623432578,-500.0,0.00010112,2]
[420843580,1776623432588,-500.0,0.00010112,2]
[420843581,1776623432597,-500.0,0.00010112,2]
[420843582,1776623432607,-500.0,0.00010112,2]
[420843583,1776623432616,-500.0,0.00010112,2]
[420843584,1776623432626,-500.0,0.00010112,2]
[420843585,1776623432635,-500.0,0.00010112,2]
[420843586,1776623432645,-500.0,0.00010112,2]
[420843587,1776623432655,-500.0,0.00010112,2]
[420843588,1776623432665,-500.0,0.00010112,2]
[420843589,1776623432674,-500.0,0.00010112,2]
[420843590,1776623432683,-500.0,0.00010112,2]
[420843591,1776623432693,-500.0,0.00010112,2]
[420843592,1776623432703,-500.0,0.00010112,2]
[420843593,1776623432712,-500.0,0.00010112,2]
[420843594,1776623432722,-500.0,0.00010112,2]
[420843595,1776623432731,-500.0,0.00010112,2]
[420843596,1776623432746,-500.0,0.00010112,2]
[420843597,1776623432756,-500.0,0.00010112,2]
[420843598,1776623432765,-500.0,0.00010112,2]
[420843599,1776623432775,-500.0,0.00010112,2]
[420843600,1776623432785,-500.0,0.00010112,2]
[420843601,1776623432794,-500.0,0.00010112,2]
[420843602,1776623432804,-500.0,0.00010112,2]
[420843603,1776623432813,-500.0,0.00010112,2]
[420843604,1776623432823,-500.0,0.00010112,2]
[420843605,1776623432833,-500.0,0.00010112,2]
[420843606,1776623432843,-500.0,0.00010112,2]
[420843607,1776623432852,-500.0,0.00010112,2]
[420843608,1776623432862,-500.0,0.00010112,2]
[420843609,1776623432872,-500.0,0.00010112,2]
[420843610,1776623432882,-500.0,0.00010112,2]
[420843611,1776623432893,-500.0,0.00010112,2]
[420843612,1776623432903,-500.0,0.00010112,2]
[420843613,1776623432912,-401.93088244,0.00010112,2]
[420843614,1776623432926,-98.06911756,0.00010112,2]
[420843615,1776623432936,-500.0,0.00010112,2]
[420843616,1776623432946,-500.0,0.00010112,2]
[420843617,1776623432957,-500.0,0.00010112,2]
[420843618,1776623432967,-500.0,0.00010112,2]
[420843619,1776623432976,-500.0,0.00010112,2]
[420843620,1776623432986,-500.0,0.00010112,2]
[420843621,1776623432995,-500.0,0.00010112,2]
[420843622,1776623433005,-500.0,0.00010112,2]
[420843623,1776623433014,-500.0,0.00010112,2]
[420843624,1776623433024,-500.0,0.00010112,2]
[420843625,1776623433033,-500.0,0.00010112,2]
[420843626,1776623433043,-708.13671038,0.00010112,2]
[420843627,1776623433052,-708.13671038,0.00010112,2]
[420843628,1776623433062,-708.13671038,0.00010112,2]
[420843629,1776623433071,-708.13671038,0.00010112,2]
[420843630,1776623433080,-708.13671038,0.00010112,2]
[420843631,1776623433090,-708.13671038,0.00010112,2]
[420843632,1776623433100,-708.13671038,0.00010112,2]
[420843633,1776623433110,-708.13671038,0.00010112,2]
[420843634,1776623433119,-708.13671038,0.00010112,2]
[420843635,1776623433134,-708.13671038,0.00010112,2]
[420843636,1776623433143,-708.13671038,0.00010112,2]
[420843637,1776623433152,-708.13671038,0.00010112,2]
[420843638,1776623433163,-708.13671038,0.00010112,2]
[420843639,1776623433172,-708.13671038,0.00010112,2]
[420843640,1776623433182,-708.13671038,0.00010112,2]
[420843641,1776623433192,-708.13671038,0.00010112,2]
[420843642,1776623433202,-708.13671038,0.00010112,2]
[420843643,1776623433212,-708.13671038,0.00010112,2]
[420843644,1776623433221,-708.13671038,0.00010112,2]
[420843645,1776623433231,-708.13671038,0.00010112,2]
[420843646,1776623433241,-708.13671038,0.00010112,2]
[420843647,1776623433250,-708.13671038,0.00010112,2]
[420843648,1776623433260,-708.13671038,0.00010112,2]
[420843649,1776623433269,-708.13671038,0.00010112,2]
[420843650,1776623433279,-708.13671038,0.00010112,2]
[420843651,1776623433289,-708.13671038,0.00010112,2]
[420843652,1776623433299,-708.13671038,0.00010112,2]
[420843653,1776623433308,-708.13671038,0.00010112,2]
[420843654,1776623433318,-708.13671038,0.00010112,2]
[420843655,1776623433328,-708.13671038,0.00010112,2]
[420843656,1776623433338,-708.13671038,0.00010112,2]
[420843657,1776623433347,-708.13671038,0.00010112,2]
[420843658,1776623433357,-708.13671038,0.00010112,2]
[420843659,1776623433367,-708.13671038,0.00010112,2]
[420843660,1776623433377,-708.13671038,0.00010112,2]
[420843661,1776623433386,-708.13671033,0.00010112,2]
[420843662,1776623433396,-708.13671033,0.00010112,2]
[420843663,1776623433406,-708.13671033,0.00010112,2]
[420843664,1776623433415,-2854.769,0.00010113,2]
[420843665,1776623433424,-150.0,0.00010119,2]
[420843666,1776623433434,-150.0,0.00010138,2]
[420843667,1776623433444,-500.0,0.00010173,2]
[420843668,1776623433453,-150.68563301,0.00010192,2]
[420843669,1776623433463,-160.84763975,0.00010192,2]
[420843670,1776623433473,-298.0539811,0.00010192,2]
[420843671,1776623433482,-153.49925976,0.00010192,2]
[420843672,1776623433494,-150.68870467,0.00010192,2]
[420843673,1776623433505,-152.88062369,0.00010192,2]
[420843674,1776623433514,-150.0,0.00010192,2]
[420843675,1776623433528,-253.48247859,0.00010192,2]
[420843676,1776623433538,-153.80598328,0.00010192,2]
[420843677,1776623433549,-150.0,0.00010192,2]
[420843678,1776623433559,-200.0,0.00010206,2]
[420843679,1776623433569,-151.0,0.00010206,2]
[420843680,1776623433580,-151.0,0.00010206,2]
[420843681,1776623433590,-151.0,0.00010206,2]
[420843682,1776623433600,-151.0,0.00010206,2]
[420843683,1776623433610,-151.0,0.00010206,2]
[420843684,1776623433620,-151.0,0.00010206,2]
[420843685,1776623433629,-500.0,0.00010206,2]
[420843686,1776623433639,-151.0,0.00010206,2]
[420843687,1776623433649,-500.0,0.00010206,2]
[420843688,1776623433659,-151.0,0.00010206,2]
[420843689,1776623433668,-500.0,0.00010206,2]
[420843690,1776623433678,-151.0,0.00010206,2]
[420843691,1776623434464,-500.0,0.00010206,2]
[420843692,1776623434476,-151.0,0.00010206,2]
[420843693,1776623434486,-500.0,0.00010206,2]
[420843694,1776623434498,-151.0,0.00010206,2]
[420843695,1776623434507,-500.0,0.00010206,2]
[420843696,1776623434520,-151.0,0.00010206,2]
[420843697,1776623434532,-221.9670566,0.00010206,2]
[420843698,1776623436936,-278.0329434,0.00010206,2]
[420843699,1776623436946,-151.0,0.00010206,2]
[420843700,1776623436956,-242.14846777,0.00010206,2]
[420843701,1776623436968,-257.85153223,0.00010206,2]
[420843702,1776623436978,-151.0,0.00010206,2]
[420843703,1776623436988,-402.53221915,0.00010206,2]
[420843704,1776623437000,-97.46778085,0.00010206,2]
[420843705,1776623437010,-151.0,0.00010206,2]
[420843706,1776623437019,-231.66311985,0.00010206,2]
[420843707,1776623437029,-151.0,0.00010206,2]
[420843708,1776623437038,-151.0,0.0001021,2]
[420843709,1776623437048,-150.0,0.00010212,2]
[420843710,1776623437057,-183.168472,0.00010213,2]
[420843711,1776623437067,-183.168472,0.00010213,2]
[420843712,1776623437077,-183.168472,0.00010213,2]
[420843713,1776623437086,-183.168472,0.00010213,2]
[420843714,1776623437096,-152.0,0.00010215,7]
[420843715,1776623437106,-152.0,0.00010215,7]
[420843716,1776623437116,-152.0,0.00010215,7]
[420843717,1776623437129,-374.74437705,0.00010219,2]
[420843718,1776623437139,-151.0,0.00010319,2]
[420843719,1776623437151,-257.54007605,0.00010385,2]
[420843722,1776623438816,-162.73992395,0.00010385,2]
[420843723,1776623438825,-744.0,0.00010493,2]
[420843724,1776623438834,-150.0,0.00010512,2]
[420843746,1776623439226,-420.28,0.00010659,2]
[420843752,1776623439320,-4311.43348281,0.000107,2]
[420843754,1776623439330,-577.68718738,0.000107,2]
[420843756,1776623439339,-1390.59482846,0.000107,2]
[420843776,1776623440415,-657.54399717,0.000107,2]
[420843777,1776623440427,-441.64169139,0.000107,2]
[420843778,1776623440914,-942.78265759,0.000107,2]
[420843779,1776623440924,-1000.0,0.00010721,2]
[420843780,1776623440933,-200.0,0.00010754,2]
[420843781,1776623440944,-833.70876498,0.0001076,2]
[420843782,1776623440953,-156.27,0.00010773,2]
[420843783,1776623440963,-666.38,0.00010849,2]
[420843784,1776623440972,-2841.3,0.000109,2]
[420843786,1776623440982,-2841.3,0.000109,2]
[420843788,1776623440992,-3925.37377603,0.000109,2]
[420843790,1776623441002,-420.28,0.00010933,2]
[420843792,1776623441012,-500.0,0.00010959,2]
[420843794,1776623441021,-1609.97,0.00010959,2]
[420843796,1776623441031,-3240.0,0.00010959,2]
[420843798,1776623441040,-180.68,0.00010989,2]
[420843800,1776623441049,-5295.95,0.00011,2]
[420843801,1776623441059,-250.0,0.00011013,2]
[420843802,1776623441068,-600.0,0.00011013,2]
[420843803,1776623441078,-600.0,0.00011013,2]
[420843804,1776623441088,-600.0,0.00011013,2]
[420843805,1776623441098,-600.0,0.00011013,2]
[420843806,1776623441107,-600.0,0.00011013,2]
[420843807,1776623441117,-2764.74634933,0.00011013,2]
[420843808,1776623441129,-1045.19488352,0.00011013,2]
[420843821,1776623443553,-1210.52876715,0.00011013,2]
[420843822,1776623443562,-193.0,0.00011013,2]
[420843823,1776623443574,-89.87123285,0.00011037,2]
[420843824,1776623443612,-1590.12876715,0.00011037,2]
[420843825,1776623443622,-287.0,0.00011037,2]
[420843826,1776623443631,-255.0,0.00011037,2]
[420843827,1776623443640,-166.66,0.00011058,2]
[420843828,1776623443650,-300.0,0.00011098,2]
[420843829,1776623443659,-3925.37377603,0.0001114,2]
[420843830,1776623443668,-420.29,0.00011207,2]
[420843831,1776623443677,-155.353,0.00011232,2]
[420843832,1776623443687,-150.0,0.00011233,2]
[420843833,1776623443696,-200.0,0.00011302,2]
[420843834,1776623443705,-151.0,0.00011457,2]
[420843835,1776623443714,-995.79,0.00011507,2]
[420843836,1776623443724,-156.27,0.00011542,2]
[420843837,1776623443733,-19613.1245016,0.00011641,2]
[420843838,1776623443744,-151.0,0.00011997,2]
[420843839,1776623443754,-1500.0,0.00012002,2]
[420843840,1776623443766,-2351.0,0.00012141,2]
[420843841,1776623443776,-1600.0,0.00012175,2]
[420843842,1776623443786,-19613.1245016,0.00012184,2]
[420843843,1776623443796,-3925.37377603,0.00012266,2]
[420843844,1776623443807,-156.27,0.00012312,2]
[420843845,1776623443817,-164.8162,0.00012515,2]
[420843846,1776623443827,-374.74437703,0.0001256,2]
[420843847,1776623443838,-19613.1245016,0.00012728,2]
[420843848,1776623443848,-261.67121865,0.00012987,2]
[420843849,1776623443857,-156.27,0.00013081,2]
[420843850,1776623443867,-250.0,0.00013229,2]
[420843851,1776623443876,-368.82599594,0.0001327,2]
[420843852,1776623443885,-319.04022554,0.0001327,2]
[420843853,1776623443895,-495.6309176,0.0001327,2]
[420843854,1776623443904,-170.10580161,0.0001327,2]
[420843855,1776623443913,-500.0,0.0001327,2]
[420843856,1776623443923,-500.0,0.0001327,2]
[420843857,1776623443932,-500.0,0.0001327,2]
[420843858,1776623443941,-555.69744697,0.0001327,2]
[420843859,1776623443952,-19613.1245016,0.00013271,2]
[420843860,1776623443962,-3292.0,0.00013355,2]
[420843861,1776623443971,-3925.37377603,0.00013393,2]
[420843862,1776623443981,-503.0,0.000135,2]
[420843863,1776623443991,-5295.95,0.000135,2]
[420843864,1776623444000,-1600.0,0.00013697,2]
[420843865,1776623444010,-999.36,0.00013698,2]
[420843866,1776623444019,-999.36,0.00013698,2]
[420843867,1776623444028,-999.36,0.00013698,2]
[420843868,1776623444037,-999.36,0.00013698,2]
[420843869,1776623444046,-999.36,0.00013698,2]
[420843870,1776623444056,-151.0,0.00013698,2]
[420843871,1776623444065,-151.0,0.00013698,2]
[420843872,1776623444074,-183.972495,0.00013698,2]
[420843873,1776623444083,-183.972495,0.00013698,2]
[420843874,1776623444092,-183.972495,0.00013698,2]
[420843875,1776623444101,-183.972495,0.00013698,2]
[420843876,1776623444111,-151.0,0.00013698,2]
[420843877,1776623444120,-157.28,0.000137,2]
[420843878,1776623444129,-19613.1245016,0.00013814,2]
[420843879,1776623444139,-183.168472,0.00013814,2]
[420843880,1776623444148,-183.168472,0.00013814,2]
[420843881,1776623444157,-183.168472,0.00013814,2]
[420843882,1776623444167,-183.168472,0.00013814,2]
[420843883,1776623444177,-151.0,0.00013836,2]
[420843884,1776623444186,-156.27,0.0001385,2]
[420843885,1776623444195,-160.0,0.00013988,7]
[420843888,1776623444205,-249.561324,0.00013988,7]
[420843890,1776623444214,-339.122648,0.00013988,7]
[420843892,1776623444223,-160.0,0.00013988,2]
[420843893,1776623444232,-1871.813882,0.00013988,2]
[420843894,1776623444241,-3583.627764,0.00013988,2]
[420843895,1776623444250,-160.0,0.00013988,7]
[420843896,1776623444259,-1562.64952,0.00013988,7]
[420843897,1776623444269,-2965.29904,0.00013988,7]
[420843898,1776623444278,-300.0,0.00014272,2]
[420843899,1776623444287,-49752.9070165,0.00014273,2]
[420843900,1776623444296,-1686.7461593,0.00014273,2]
[420843901,1776623444305,-148969.0375591,0.00014273,2]
[420843902,1776623444314,-158.7175527,0.00014273,2]
[420843903,1776623444323,-151.0,0.00014273,2]
[420843904,1776623444332,-151.0,0.00014273,2]
[420843905,1776623444342,-1541.8861294,0.00014273,2]
[420843906,1776623444351,-183.972495,0.00014273,2]
[420843907,1776623444360,-183.972495,0.00014273,2]
[420843908,1776623444369,-183.972495,0.00014273,2]
[420843909,1776623444378,-183.972495,0.00014273,2]
[420843910,1776623444387,-151.0,0.00014273,2]
[420843911,1776623444396,-151.0,0.00014273,2]
[420843912,1776623444405,-11572.92554886,0.00014357,2]
[420843913,1776623444418,-8040.19895274,0.00014357,2]
[420843914,1776623444427,-183.168472,0.00014357,2]
[420843915,1776623444436,-183.168472,0.00014357,2]
[420843916,1776623444445,-183.168472,0.00014357,2]
[420843917,1776623444453,-183.168472,0.00014357,2]
[420843918,1776623444462,-160.0,0.00014366,2]
[420843919,1776623444471,-151.0,0.00014368,2]
[420843920,1776623444480,-503.0,0.00014424,2]
[420843921,1776623444489,-198.38044346,0.0001452,2]
[420843922,1776623444519,-3726.99333257,0.0001452,2]
[420843923,1776623444528,-160.0,0.00014553,7]
[420843924,1776623444537,-1271.024029,0.00014553,7]
[420843925,1776623444547,-2382.048058,0.00014553,7]
[420843926,1776623444557,-160.0,0.00014553,2]
[420843927,1776623444566,-379.392717,0.00014553,2]
[420843928,1776623444575,-598.785434,0.00014553,2]
[420843929,1776623444585,-160.0,0.00014553,7]
[420843930,1776623444594,-8952.383269,0.00014553,7]
[420843931,1776623444603,-17744.766539,0.00014553,7]
[420843932,1776623444612,-510.466345,0.00014687,7]
[420843933,1776623444622,-2552.473475,0.00014687,2]
[420843934,1776623444631,-3196.328563,0.00014687,7]
[420843935,1776623444641,-4609.0,0.00014691,2]
[420843936,1776623444650,-165.748962,0.000147,7]
[420843937,1776623444659,-1000.0,0.000147,5]
[420843938,1776623444668,-1200.0,0.000148,5]
[420843939,1776623444678,-300.0,0.00014849,2]
[420843940,1776623444687,-224760.76153067,0.0001485,2]
[420843941,1776623444697,-183.168472,0.0001485,2]
[420843942,1776623444706,-183.168472,0.0001485,2]
[420843943,1776623444715,-183.168472,0.0001485,2]
[420843944,1776623444725,-183.168472,0.0001485,2]
[420843945,1776623444738,-151.0,0.0001485,2]
[420843946,1776623444748,-151.0,0.0001485,2]
[420843947,1776623444757,-183.972495,0.0001485,2]
[420843948,1776623444766,-183.972495,0.0001485,2]
[420843949,1776623444776,-183.972495,0.0001485,2]
[420843950,1776623444785,-183.972495,0.0001485,2]
[420843951,1776623444794,-151.0,0.0001485,2]
[420843952,1776623444803,-29119.8270361,0.00014879,2]
[420843953,1776623444813,-19613.1245016,0.000149,2]
[420843954,1776623444823,-374.74437703,0.000149,2]
[420843955,1776623444832,-200.0,0.000149,5]
[420843956,1776623444841,-192.14915577,0.000149,2]
[420843957,1776623444851,-222.78165585,0.000149,2]
[420843958,1776623444860,-999.36,0.00014999,2]
[420843959,1776623444871,-999.36,0.00014999,2]
[420843960,1776623444880,-999.36,0.00014999,2]
[420843961,1776623444890,-999.36,0.00014999,2]
[420843962,1776623444899,-999.36,0.00014999,2]
[420843963,1776623444908,-999.36,0.00014999,2]
[420843964,1776623444918,-999.36,0.00014999,2]
[420843965,1776623444927,-999.36,0.00014999,2]
[420843966,1776623444936,-999.36,0.00014999,2]
[420843967,1776623444946,-999.36,0.00014999,2]
[420843968,1776623444955,-999.36,0.00014999,2]
[420843969,1776623444965,-999.36,0.00014999,2]
[420843970,1776623444974,-999.36,0.00014999,2]
[420843971,1776623444984,-999.36,0.00014999,2]
[420843972,1776623444993,-999.36,0.00014999,2]
[420843973,1776623445004,-999.36,0.00014999,2]
[420843974,1776623445013,-999.36,0.00014999,2]
[420843975,1776623445023,-999.36,0.00014999,2]
[420843976,1776623445032,-999.59502578,0.00014999,2]
[420843977,1776623445042,-249214.40697053,0.00015,2]
[420843978,1776623445054,-149196.35635874,0.00015,2]
[420843979,1776623445065,-81852.37404457,0.00015,2]
[420843996,1776623446381,-179.55,0.00013025,2]
[420843997,1776623446391,-200.0,0.00014313,2]
[420843998,1776623446401,-7658.61800818,0.00015,2]
[420843999,1776623446440,-224.44,0.00013321,2]
[420844000,1776623446452,-56818.02814793,0.00015,2]
[420844023,1776623450779,-5808.85334181,0.00015,2]
[420844024,1776623450802,-269.33,0.00013617,2]
[420844025,1776623450812,-1239.619995,0.00015,2]
[420844026,1776623450823,-6470.92463251,0.00015,2]
[420844027,1776623450839,-4608.3158,0.00015,2]
[420844028,1776623503117,4176.20094933,9.935e-05,2]
[420844029,1776623503143,5000.01,9.935e-05,2]
[420844030,1776623503168,5000.01,9.935e-05,2]
[420844031,1776623503196,1393354.81951019,9.935e-05,2]
[420844032,1776623510563,-4650.01,9.935e-05,2]
[420844033,1776623515253,-5000.01,9.935e-05,2]
[420844034,1776623515271,-5000.01,9.935e-05,2]
[420844035,1776623515284,-5000.01,9.935e-05,2]
[420844036,1776623515299,-5000.01,9.935e-05,2]
[420844037,1776623516067,-9516.34136843,9.935e-05,2]
[420844038,1776623516259,-10000.01,9.935e-05,2]
[420844039,1776623516333,-5000.01,9.935e-05,2]
[420844040,1776623516571,-5000.01,9.935e-05,2]
[420844041,1776623516674,-5000.01,9.935e-05,2]
[420844042,1776623516802,-5000.01,9.935e-05,2]
[420844046,1776623519248,-5000.01,9.935e-05,2]
[420844047,1776623519357,-5000.01,9.935e-05,2]
[420844048,1776623519471,-5000.01,9.935e-05,2]
[420844049,1776623519588,-5000.01,9.935e-05,2]
[420844050,1776623522729,-10000.01,9.935e-05,2]
[420844051,1776623522875,-10000.01,9.935e-05,2]
[420844052,1776623546049,-358.9294023,9.935e-05,2]
[420844053,1776623546079,-209.03579245,9.935e-05,2]
[420844054,1776623546127,-8864.0796105,9.935e-05,2]
[420844056,1776623555490,-10000.01,9.935e-05,2]
[420844057,1776623556447,-10000.01,9.935e-05,2]
[420844058,1776623637659,-3491.902215,9.885e-05,2]
[420844059,1776623637684,-3016.20557,9.885e-05,2]
[420844060,1776623637840,-10000.01,9.935e-05,2]
[420844061,1776623637949,-10000.01,9.935e-05,2]
[420844062,1776623638074,-10000.01,9.935e-05,2]
[420844063,1776623638178,-10000.01,9.935e-05,2]
[420844064,1776623638287,-10000.01,9.935e-05,2]
[420844065,1776623638410,-10000.01,9.935e-05,2]
[420844066,1776623638516,-10000.01,9.935e-05,2]
[420844067,1776623651492,-10000.01,9.935e-05,2]
[420844068,1776623659965,-1186.0,9.934e-05,2]
[420844069,1776623660244,-7628.01,9.935e-05,2]
[420844070,1776623660259,-10000.01,9.935e-05,2]
[420844071,1776623660274,-10000.01,9.935e-05,2]
[420844072,1776623660288,-10000.01,9.935e-05,2]
[420844073,1776623660303,-10000.01,9.935e-05,2]
[420844074,1776623660318,-5841.33436155,9.935e-05,2]
[420844075,1776623660327,-4158.67563845,9.935e-05,2]
[420844076,1776623660342,-10000.01,9.935e-05,2]
[420844077,1776623660357,-10000.01,9.935e-05,2]
[420844078,1776623660376,-10000.01,9.935e-05,2]
[420844079,1776623664311,-10000.01,9.935e-05,2]
[420844080,1776623674597,-10000.01,9.935e-05,2]
[420844081,1776623674611,-10000.01,9.935e-05,2]
[420844082,1776623674625,-10000.01,9.935e-05,2]
[420844083,1776623674639,-10000.01,9.935e-05,2]
[420844084,1776623674653,-10000.01,9.935e-05,2]
[420844085,1776623674666,-10000.01,9.935e-05,2]
[420844086,1776623674680,-10000.01,9.935e-05,2]
[420844087,1776623731133,-150.0,9.639e-05,2]
[420844088,1776623731162,-300.0,9.934e-05,2]
[420844089,1776623731190,-1200.0,9.934e-05,2]
[420844090,1776623731217,-300.0,9.934e-05,2]
[420844091,1776623731245,-278.0,9.935e-05,2]
[420844092,1776623731337,-5544.01,9.935e-05,2]
[420844093,1776623738637,-10000.01,9.935e-05,2]
[420844094,1776623738794,-10000.01,9.935e-05,2]
[420844095,1776623738896,-10000.01,9.935e-05,2]
[420844096,1776623739327,-10000.01,9.935e-05,2]
[420844097,1776623739512,-10000.01,9.935e-05,2]
[420844098,1776623739628,-10000.01,9.935e-05,2]
[420844099,1776623739746,-10000.01,9.935e-05,2]
[420844100,1776623739842,-10000.01,9.935e-05,2]
[420844101,1776623762819,-278.0,9.935e-05,2]
[420844102,1776623769656,300.0,9.934e-05,2]
[420844103,1776623777771,-9700.01,9.935e-05,2]
[420844104,1776623777786,-2515.58556155,9.935e-05,2]
[420844105,1776623814456,254.0,9.939e-05,2]
[420844106,1776623883831,9746.01,9.835e-05,2]
[420844107,1776623883859,10000.01,9.835e-05,2]
[420844108,1776623883887,10000.01,9.835e-05,2]
[420844109,1776623883915,10000.01,9.835e-05,2]
[420844110,1776623883943,10000.01,9.835e-05,2]
[420844111,1776623883969,10000.01,9.835e-05,2]
[420844112,1776623883995,8306.2235,9.835e-05,2]
[420844113,1776624132627,-150.0,9.939e-05,2]
[420844114,1776624184610,150.0,9.916e-05,2]
[420844115,1776624224235,5381.4319957,9.934e-05,2]
[420844116,1776624256027,150.0,9.916e-05,2]
[420844117,1776624312563,4318.5780043,9.934e-05,2]
[420844118,1776624312587,5845.476212,9.934e-05,2]
[420844119,1776624322497,150.0,9.919e-05,2]
[420844120,1776624391047,150.0,9.984e-05,2]
[420844121,1776624458967,150.0,9.873e-05,2]
[420844122,1776624526594,150.0,9.853e-05,2]
[420844125,1776624596060,150.0,9.924e-05,2]
[420844127,1776624631437,-333.99520045,0.0001,2]
[420844128,1776624631447,-320.79649049,0.0001,2]
[420844129,1776624631457,-63.80474136,0.0001,2]
[420844130,1776624631469,-95.64733229,0.0001,2]
[420844131,1776624631478,-250.0,0.0001012,2]
[420844132,1776624631488,-150.0,0.00010239,2]
[420844133,1776624631498,-1200.0,0.00010385,2]
[420844134,1776624631507,-890.4047302,0.00010386,2]
[420844135,1776624631519,-2330.2477698,0.00010386,2]
[420844136,1776624631529,-159.45207365,0.00010386,2]
[420844137,1776624631538,-159.45207365,0.00010386,2]
[420844138,1776624631548,-810.06762845,0.00010486,2]
[420844139,1776624631564,-11118.3,0.00010486,2]
[420844141,1776624637521,-3370.41693955,0.00010486,2]
[420844142,1776624637531,-150.0,0.00010539,2]
[420844143,1776624637540,-150.0,0.00010664,2]
[420844144,1776624637549,-150.0,0.00010964,2]
[420844145,1776624637559,-150.0,0.00010999,2]
[420844146,1776624637568,-4979.53,0.00011,2]
[420844147,1776624637577,-600.0,0.00011,2]
[420844168,1776624638079,-600.0,0.00011,2]
[420844171,1776624638093,-600.0,0.00011,2]
[420844173,1776624638103,-250.0,0.00011,2]
[420844175,1776624638112,-151.0,0.00011189,2]
[420844177,1776624638122,-151.0,0.00011189,2]
[420844179,1776624638132,-151.0,0.00011189,2]